fUSD/lending_fUSD_20250507
["ID","MTS","AMOUNT","RATE_DAILY","PERIOD"]
[360170411,1746589843708,-985.47,0.00019641,2]
[360170412,1746589843722,-450.0,0.00019641,2]
[360170413,1746589843732,-150.33,0.00019641,2]
[360170414,1746589843741,-507.76506426,0.00019641,2]
[360170415,1746589843750,-450.0,0.00019641,2]
[360170416,1746589843761,-450.0,0.00019641,2]
[360170417,1746589843770,-450.0,0.00019641,2]
[360170418,1746589843779,-450.0,0.00019641,2]
[360170419,1746589843790,-450.0,0.00019641,2]
[360170420,1746589843802,-504.47,0.00019641,2]
[360170421,1746589843811,-450.0,0.00019641,2]
[360170422,1746589843820,-450.0,0.00019641,2]
[360170423,1746589843830,-1166.65,0.00019641,2]
[360170424,1746589843839,-423.318285,0.00019641,2]
[360170425,1746589843848,-490.19885,0.00019641,2]
[360170426,1746589843858,-450.0,0.00019641,2]
[360170427,1746589843867,-452.41443463,0.00019641,2]
[360170428,1746589843876,-567.225333,0.00019641,2]
[360170429,1746589843885,-439.60821371,0.00019641,2]
[360170430,1746589843894,-300.71898,0.00019641,2]
[360170431,1746589843904,-500.0,0.00019641,2]
[360170432,1746589843914,-450.0,0.00019641,2]
[360170433,1746589843923,-450.0,0.00019641,2]
[360170434,1746589843932,-450.0,0.00019641,2]
[360170435,1746589843941,-450.0,0.00019641,2]
[360170436,1746589843950,-262.16,0.00019642,2]
[360170437,1746589843960,-450.0,0.00019642,2]
[360170438,1746589843969,-450.0,0.00019642,2]
[360170439,1746589843978,-450.0,0.00019642,2]
[360170440,1746589843987,-909.98,0.00019642,2]
[360170441,1746589843996,-450.0,0.00019642,2]
[360170442,1746589844006,-450.0,0.00019642,2]
[360170443,1746589844015,-450.0,0.00019642,2]
[360170444,1746589844024,-450.0,0.00019642,2]
[360170445,1746589844033,-450.0,0.00019642,2]
[360170446,1746589844042,-418.05230118,0.00019642,2]
[360170447,1746589844051,-450.0,0.00019642,2]
[360170448,1746589844060,-450.0,0.00019642,2]
[360170449,1746589844069,-450.0,0.00019642,2]
[360170450,1746589844078,-450.0,0.00019642,2]
[360170451,1746589844087,-479.35,0.00019642,2]
[360170452,1746589844096,-464.25,0.00019642,2]
[360170453,1746589844106,-450.0,0.00019642,2]
[360170454,1746589844115,-450.0,0.00019642,2]
[360170455,1746589844124,-450.0,0.00019642,2]
[360170456,1746589844133,-450.0,0.00019642,2]
[360170457,1746589844142,-450.0,0.00019642,2]
[360170458,1746589844151,-675.21,0.00019642,2]
[360170459,1746589844171,-742.07,0.00019642,2]
[360170460,1746589844181,-716.87,0.00019642,2]
[360170461,1746589844190,-1126.55,0.00019642,2]
[360170462,1746589844199,-1097.92,0.00019642,2]
[360170463,1746589844209,-595.82,0.00019642,2]
[360170464,1746589844218,-1328.68,0.00019642,2]
[360170465,1746589844227,-450.0,0.00019642,2]
[360170466,1746589844236,-450.0,0.00019642,2]
[360170467,1746589844246,-1412.15,0.00019642,2]
[360170468,1746589844255,-450.0,0.00019642,2]
[360170469,1746589844264,-557.66,0.00019642,2]
[360170470,1746589844274,-1335.18,0.00019642,2]
[360170471,1746589844284,-450.0,0.00019642,2]
[360170472,1746589844294,-1406.65,0.00019642,2]
[360170473,1746589844303,-450.0,0.00019642,2]
[360170474,1746589844313,-450.0,0.00019642,2]
[360170475,1746589844324,-450.0,0.00019642,2]
[360170476,1746589844334,-450.0,0.00019642,2]
[360170477,1746589844343,-450.0,0.00019642,2]
[360170478,1746589844351,-450.0,0.00019642,2]
[360170479,1746589844363,-450.0,0.00019642,2]
[360170480,1746589844372,-450.0,0.00019642,2]
[360170481,1746589844382,-2967.13,0.00019642,2]
[360170482,1746589844391,-25824.35,0.00019642,2]
[360170483,1746589844400,-450.0,0.00019642,2]
[360170484,1746589844409,-450.0,0.00019642,2]
[360170485,1746589844418,-450.0,0.00019642,2]
[360170486,1746589844428,-450.0,0.00019642,2]
[360170487,1746589844437,-450.0,0.00019642,2]
[360170488,1746589844448,-450.0,0.00019642,2]
[360170489,1746589844458,-521.49,0.00019642,2]
[360170490,1746589844468,-23071.97,0.00019642,2]
[360170491,1746589844477,-450.0,0.00019642,2]
[360170492,1746589844487,-179.1499105,0.00019642,2]
[360170493,1746589844496,-1716.36,0.00019642,2]
[360170494,1746589844506,-450.0,0.00019642,2]
[360170495,1746589844515,-500.0,0.00019642,2]
[360170496,1746589844524,-5994.07,0.00019642,2]
[360170497,1746589844533,-450.0,0.00019642,2]
[360170498,1746589844543,-557.12,0.00019642,2]
[360170499,1746589844552,-185.42382483,0.00019642,2]
[360170500,1746589844561,-450.0,0.00019642,2]
[360170501,1746589844571,-894.36,0.00019642,2]
[360170502,1746589844580,-1341.44,0.00019642,2]
[360170503,1746589844589,-450.0,0.00019642,2]
[360170504,1746589844598,-1745.47,0.00019642,2]
[360170505,1746589844607,-450.0,0.00019642,2]
[360170506,1746589844617,-450.0,0.00019642,2]
[360170507,1746589844626,-450.0,0.00019642,2]
[360170508,1746589844635,-739.75,0.00019642,2]
[360170509,1746589844644,-450.0,0.00019642,2]
[360170510,1746589844654,-1021.81,0.00019642,2]
[360170511,1746589844664,-450.0,0.00019642,2]
[360170512,1746589844673,-450.0,0.00019642,2]
[360170513,1746589844682,-450.0,0.00019642,2]
[360170514,1746589844692,-450.0,0.00019642,2]
[360170515,1746589844701,-450.0,0.00019642,2]
[360170516,1746589844710,-450.0,0.00019642,2]
[360170517,1746589844722,-1566.86,0.00019642,2]
[360170518,1746589844731,-450.0,0.00019642,2]
[360170519,1746589844741,-499.91,0.00019642,2]
[360170520,1746589844750,-450.0,0.00019642,2]
[360170521,1746589844761,-450.0,0.00019642,2]
[360170522,1746589844771,-1199.07,0.00019642,2]
[360170523,1746589844780,-450.0,0.00019642,2]
[360170524,1746589844789,-450.0,0.00019642,2]
[360170525,1746589844799,-471.5,0.00019642,2]
[360170526,1746589844808,-450.0,0.00019642,2]
[360170527,1746589844817,-450.0,0.00019642,2]
[360170528,1746589844827,-450.0,0.00019642,2]
[360170529,1746589844836,-484.73,0.00019642,2]
[360170530,1746589844845,-460.0,0.00019643,2]
[360170531,1746589844854,-450.0,0.00019643,2]
[360170532,1746589844863,-470.0,0.00019643,2]
[360170533,1746589844872,-560.79231078,0.00019643,2]
[360170534,1746589844881,-450.0,0.00019643,2]
[360170535,1746589844891,-520.0,0.00019643,2]
[360170536,1746589844900,-450.0,0.00019643,2]
[360170537,1746589844909,-450.0,0.00019643,2]
[360170538,1746589844918,-466.29695875,0.00019643,2]
[360170539,1746589844927,-450.0,0.00019643,2]
[360170540,1746589844937,-450.0,0.00019643,2]
[360170541,1746589844946,-450.0,0.00019643,2]
[360170542,1746589844955,-450.0,0.00019643,2]
[360170543,1746589844965,-450.0,0.00019643,2]
[360170544,1746589844975,-450.0,0.00019643,2]
[360170545,1746589844984,-1862.15,0.00019643,2]
[360170546,1746589844993,-450.0,0.00019643,2]
[360170547,1746589845002,-495.05021901,0.00019643,2]
[360170548,1746589845011,-450.0,0.00019643,2]
[360170549,1746589845020,-450.0,0.00019643,2]
[360170550,1746589845030,-411.29369786,0.00019643,2]
[360170551,1746589845039,-450.0,0.00019643,2]
[360170552,1746589845048,-450.0,0.00019643,2]
[360170553,1746589845057,-487.43730916,0.00019643,2]
[360170554,1746589845067,-450.0,0.00019643,2]
[360170555,1746589845076,-450.0,0.00019643,2]
[360170556,1746589845085,-450.0,0.00019643,2]
[360170557,1746589845094,-450.0,0.00019643,2]
[360170558,1746589845103,-450.0,0.00019643,2]
[360170559,1746589845112,-450.0,0.00019643,2]
[360170560,1746589845122,-450.0,0.00019643,2]
[360170561,1746589845131,-450.0,0.00019643,2]
[360170562,1746589845140,-450.0,0.00019643,2]
[360170563,1746589845151,-450.0,0.00019643,2]
[360170564,1746589845163,-500.0,0.00019643,2]
[360170565,1746589845173,-450.0,0.00019643,2]
[360170566,1746589845182,-504.30703448,0.00019643,2]
[360170567,1746589845191,-450.0,0.00019643,2]
[360170568,1746589845200,-459.88945369,0.00019643,2]
[360170569,1746589845209,-476.97015173,0.00019643,2]
[360170570,1746589845218,-450.0,0.00019643,2]
[360170571,1746589845228,-450.0,0.00019643,2]
[360170572,1746589845237,-450.0,0.00019643,2]
[360170573,1746589845246,-450.0,0.00019643,2]
[360170574,1746589845256,-450.0,0.00019643,2]
[360170575,1746589845265,-450.0,0.00019643,2]
[360170576,1746589845275,-450.0,0.00019643,2]
[360170577,1746589845284,-450.0,0.00019643,2]
[360170578,1746589845293,-450.0,0.00019643,2]
[360170579,1746589845303,-450.0,0.00019643,2]
[360170580,1746589845312,-450.0,0.00019643,2]
[360170581,1746589845322,-450.0,0.00019643,2]
[360170582,1746589845332,-450.0,0.00019643,2]
[360170583,1746589845340,-450.0,0.00019643,2]
[360170584,1746589845350,-450.0,0.00019643,2]
[360170585,1746589845359,-450.0,0.00019643,2]
[360170586,1746589845368,-450.0,0.00019643,2]
[360170587,1746589845377,-450.0,0.00019643,2]
[360170588,1746589845387,-594.01,0.00019643,2]
[360170589,1746589845397,-450.0,0.00019643,2]
[360170590,1746589845406,-450.0,0.00019643,2]
[360170591,1746589845415,-450.0,0.00019643,2]
[360170593,1746589845424,-450.0,0.00019643,2]
[360170594,1746589845433,-450.0,0.00019643,2]
[360170595,1746589845442,-450.0,0.00019643,2]
[360170596,1746589845452,-711.32,0.00019643,2]
[360170597,1746589845460,-450.0,0.00019643,2]
[360170598,1746589845470,-450.0,0.00019643,2]
[360170599,1746589845480,-465.37060004,0.00019643,2]
[360170601,1746589845489,-489.73,0.00019643,2]
[360170603,1746589845499,-755.28,0.00019643,2]
[360170605,1746589845507,-450.0,0.00019643,2]
[360170607,1746589845520,-450.0,0.00019643,2]
[360170609,1746589845529,-450.0,0.00019643,2]
[360170611,1746589845538,-450.0,0.00019643,2]
[360170613,1746589845547,-450.0,0.00019643,2]
[360170614,1746589845556,-450.0,0.00019643,2]
[360170615,1746589845567,-450.0,0.00019643,2]
[360170616,1746589845576,-450.0,0.00019643,2]
[360170617,1746589845585,-450.0,0.00019643,2]
[360170618,1746589845594,-450.0,0.00019643,2]
[360170619,1746589845603,-450.0,0.00019643,2]
[360170620,1746589845612,-450.0,0.00019643,2]
[360170621,1746589845621,-450.0,0.00019643,2]
[360170622,1746589845630,-784.19,0.00019643,2]
[360170623,1746589845639,-450.0,0.00019643,2]
[360170624,1746589845648,-450.0,0.00019643,2]
[360170625,1746589845657,-450.0,0.00019643,2]
[360170626,1746589845666,-450.0,0.00019643,2]
[360170627,1746589845675,-824.67,0.00019643,2]
[360170628,1746589845684,-499.27,0.00019643,2]
[360170629,1746589845693,-457.27124037,0.00019643,2]
[360170630,1746589845702,-450.0,0.00019643,2]
[360170631,1746589845712,-450.0,0.00019643,2]
[360170632,1746589845724,-450.0,0.00019643,2]
[360170633,1746589845734,-450.0,0.00019643,2]
[360170634,1746589845744,-450.0,0.00019643,2]
[360170635,1746589845755,-450.0,0.00019643,2]
[360170636,1746589845765,-450.0,0.00019643,2]
[360170637,1746589845774,-450.0,0.00019643,2]
[360170638,1746589845783,-450.0,0.00019643,2]
[360170639,1746589845794,-649.74,0.00019646,2]
[360170640,1746589845803,-450.0,0.00019646,2]
[360170641,1746589845812,-450.0,0.00019646,2]
[360170642,1746589845822,-450.0,0.00019646,2]
[360170643,1746589845831,-450.0,0.00019646,2]
[360170644,1746589845841,-1215.27,0.00019646,2]
[360170645,1746589845851,-995.05,0.00019646,2]
[360170646,1746589845860,-450.0,0.00019646,2]
[360170647,1746589845870,-557.26,0.00019646,2]
[360170648,1746589845879,-450.0,0.00019646,2]
[360170649,1746589845889,-450.0,0.00019646,2]
[360170650,1746589845898,-450.0,0.00019646,2]
[360170651,1746589845908,-500.0,0.00019646,2]
[360170652,1746589845917,-500.0,0.00019646,2]
[360170653,1746589845927,-335.16168071,0.00019646,2]
[360170654,1746589845937,-450.0,0.00019646,2]
[360170655,1746589845947,-450.0,0.00019646,2]
[360170656,1746589845956,-501.73,0.00019646,2]
[360170657,1746589845966,-450.0,0.00019646,2]
[360170658,1746589845975,-450.0,0.00019646,2]
[360170659,1746589845985,-930.37,0.00019646,2]
[360170660,1746589845994,-985.47,0.00019646,2]
[360170661,1746589846004,-450.0,0.00019646,2]
[360170662,1746589846013,-450.0,0.00019646,2]
[360170663,1746589846023,-504.47,0.00019646,2]
[360170664,1746589846034,-450.0,0.00019646,2]
[360170665,1746589846043,-1166.65,0.00019646,2]
[360170666,1746589846053,-450.0,0.00019646,2]
[360170667,1746589846063,-450.0,0.00019646,2]
[360170668,1746589846072,-450.0,0.00019646,2]
[360170669,1746589846082,-450.0,0.00019647,2]
[360170670,1746589846091,-254.98621052,0.00019647,2]
[360170671,1746589846101,-510.91043993,0.00019647,2]
[360170672,1746589846110,-1862.15,0.00019647,2]
[360170673,1746589846120,-450.0,0.00019647,2]
[360170674,1746589846129,-450.0,0.00019647,2]
[360170675,1746589846139,-450.0,0.00019647,2]
[360170676,1746589846148,-450.0,0.00019647,2]
[360170677,1746589846157,-450.0,0.00019647,2]
[360170678,1746589846167,-450.0,0.00019647,2]
[360170679,1746589846176,-909.98,0.00019647,2]
[360170680,1746589846186,-473.92460116,0.00019647,2]
[360170681,1746589846196,-478.97879105,0.00019647,2]
[360170682,1746589846206,-181.02728098,0.00019647,2]
[360170683,1746589846216,-450.0,0.00019647,2]
[360170684,1746589846225,-450.0,0.00019647,2]
[360170685,1746589846235,-450.0,0.00019647,2]
[360170686,1746589846244,-450.0,0.00019647,2]
[360170687,1746589846253,-450.0,0.00019647,2]
[360170688,1746589846263,-529.84631192,0.00019647,2]
[360170689,1746589846272,-450.0,0.00019647,2]
[360170690,1746589846282,-513.39,0.00019647,2]
[360170691,1746589846292,-450.0,0.00019647,2]
[360170692,1746589846302,-450.0,0.00019647,2]
[360170693,1746589846312,-450.0,0.00019647,2]
[360170694,1746589846322,-450.0,0.00019647,2]
[360170695,1746589846332,-450.0,0.00019647,2]
[360170696,1746589846342,-459.87938233,0.00019647,2]
[360170697,1746589846352,-464.86311483,0.00019647,2]
[360170698,1746589846362,-213.68835017,0.00019647,2]
[360170699,1746589846372,-450.0,0.00019647,2]
[360170700,1746589846381,-455.80879024,0.00019647,2]
[360170701,1746589846391,-450.0,0.00019647,2]
[360170702,1746589846401,-450.0,0.00019647,2]
[360170703,1746589846411,-450.0,0.00019647,2]
[360170704,1746589846420,-450.0,0.00019647,2]
[360170705,1746589846430,-450.0,0.00019647,2]
[360170706,1746589846440,-480.57375331,0.00019647,2]
[360170707,1746589846450,-450.0,0.00019647,2]
[360170708,1746589846459,-450.0,0.00019647,2]
[360170709,1746589846469,-450.0,0.00019647,2]
[360170711,1746589846478,-450.0,0.00019647,2]
[360170712,1746589846487,-472.34378936,0.00019647,2]
[360170713,1746589846497,-450.0,0.00019647,2]
[360170714,1746589846508,-462.95685112,0.00019647,2]
[360170715,1746589846518,-479.35,0.00019647,2]
[360170716,1746589846527,-464.25,0.00019647,2]
[360170717,1746589846539,-450.0,0.00019647,2]
[360170718,1746589846551,-594.01,0.00019647,2]
[360170719,1746589846561,-450.0,0.00019647,2]
[360170720,1746589846571,-450.0,0.00019647,2]
[360170721,1746589846580,-450.0,0.00019647,2]
[360170722,1746589846590,-450.0,0.00019647,2]
[360170723,1746589846599,-490.4396838,0.00019647,2]
[360170724,1746589846609,-711.32,0.00019647,2]
[360170725,1746589846618,-450.0,0.00019647,2]
[360170726,1746589846628,-450.0,0.00019647,2]
[360170727,1746589846637,-489.73,0.00019647,2]
[360170728,1746589846646,-755.28,0.00019647,2]
[360170729,1746589846656,-450.0,0.00019647,2]
[360170730,1746589846665,-450.0,0.00019647,2]
[360170731,1746589846675,-450.0,0.00019647,2]
[360170732,1746589846684,-450.0,0.00019647,2]
[360170733,1746589846694,-450.0,0.00019647,2]
[360170734,1746589846704,-450.0,0.00019647,2]
[360170735,1746589846718,-450.0,0.00019647,2]
[360170736,1746589846730,-526.76658304,0.00019647,2]
[360170737,1746589846739,-450.0,0.00019647,2]
[360170738,1746589846749,-450.0,0.00019647,2]
[360170739,1746589846760,-550.0,0.00019647,2]
[360170740,1746589846772,-675.21,0.00019647,2]
[360170741,1746589846782,-450.0,0.00019647,2]
[360170742,1746589846793,-450.0,0.00019647,2]
[360170743,1746589846804,-742.07,0.00019647,2]
[360170744,1746589846814,-450.0,0.00019647,2]
[360170745,1746589846826,-450.0,0.00019647,2]
[360170746,1746589846836,-450.0,0.00019647,2]
[360170747,1746589846845,-716.87,0.00019647,2]
[360170748,1746589846855,-450.0,0.00019647,2]
[360170749,1746589846864,-1126.55,0.00019647,2]
[360170750,1746589846874,-450.0,0.00019647,2]
[360170751,1746589846883,-1097.92,0.00019647,2]
[360170752,1746589846893,-784.19,0.00019647,2]
[360170753,1746589846903,-595.82,0.00019647,2]
[360170754,1746589846912,-1328.68,0.00019647,2]
[360170755,1746589846921,-450.0,0.00019647,2]
[360170756,1746589846931,-1010.13,0.00019647,2]
[360170757,1746589846940,-450.0,0.00019647,2]
[360170758,1746589846950,-450.0,0.00019647,2]
[360170759,1746589846960,-450.0,0.00019647,2]
[360170760,1746589846969,-1412.15,0.00019647,2]
[360170761,1746589846979,-1806.27,0.00019647,2]
[360170762,1746589846988,-450.0,0.00019647,2]
[360170763,1746589846997,-494.65,0.00019647,2]
[360170764,1746589847007,-557.66,0.00019647,2]
[360170765,1746589847016,-450.0,0.00019647,2]
[360170766,1746589847025,-1335.18,0.00019647,2]
[360170767,1746589847035,-450.0,0.00019647,2]
[360170768,1746589847044,-824.67,0.00019647,2]
[360170769,1746589847053,-1406.65,0.00019647,2]
[360170770,1746589847063,-182.33876259,0.00019647,2]
[360170771,1746589847072,-450.0,0.00019647,2]
[360170772,1746589847081,-499.27,0.00019647,2]
[360170773,1746589847090,-450.0,0.00019647,2]
[360170774,1746589847100,-450.0,0.00019647,2]
[360170775,1746589847109,-450.0,0.00019647,2]
[360170776,1746589847119,-198.1956,0.00019647,2]
[360170777,1746589847128,-890.24,0.00019647,2]
[360170778,1746589847138,-167.28908916,0.00019647,2]
[360170779,1746589847148,-543.59,0.00019647,2]
[360170780,1746589847158,-450.0,0.00019647,2]
[360170781,1746589847167,-450.0,0.00019647,2]
[360170782,1746589847177,-450.0,0.00019647,2]
[360170783,1746589847187,-2967.13,0.00019647,2]
[360170784,1746589847197,-450.0,0.00019647,2]
[360170785,1746589847207,-450.0,0.00019647,2]
[360170786,1746589847217,-450.0,0.00019647,2]
[360170787,1746589847227,-450.0,0.00019647,2]
[360170788,1746589847236,-25824.35,0.00019647,2]
[360170789,1746589847246,-450.0,0.00019647,2]
[360170790,1746589847255,-450.0,0.00019647,2]
[360170791,1746589847265,-591.76102963,0.00019647,2]
[360170792,1746589847275,-450.0,0.00019647,2]
[360170793,1746589847284,-450.0,0.00019647,2]
[360170794,1746589847294,-450.0,0.00019647,2]
[360170795,1746589847304,-450.0,0.00019647,2]
[360170796,1746589847313,-521.49,0.00019647,2]
[360170797,1746589847323,-23071.97,0.00019647,2]
[360170798,1746589847332,-450.0,0.00019647,2]
[360170799,1746589847342,-1716.36,0.00019647,2]
[360170800,1746589847351,-450.0,0.00019647,2]
[360170801,1746589847361,-500.0,0.00019647,2]
[360170802,1746589847370,-265.95788461,0.00019647,2]
[360170803,1746589847379,-5994.07,0.00019647,2]
[360170804,1746589847389,-557.12,0.00019647,2]
[360170805,1746589847399,-450.0,0.00019647,2]
[360170806,1746589847408,-450.0,0.00019647,2]
[360170807,1746589847418,-894.36,0.00019647,2]
[360170808,1746589847427,-1341.44,0.00019647,2]
[360170809,1746589847436,-450.0,0.00019647,2]
[360170810,1746589847446,-1745.47,0.00019647,2]
[360170811,1746589847455,-206.08472541,0.00019647,2]
[360170812,1746589847464,-450.0,0.00019647,2]
[360170813,1746589847473,-450.0,0.00019647,2]
[360170814,1746589847482,-1000.27,0.00019647,2]
[360170815,1746589847492,-450.0,0.00019647,2]
[360170816,1746589847501,-502.26992778,0.00019647,2]
[360170817,1746589847511,-964.63,0.00019647,2]
[360170818,1746589847521,-739.75,0.00019647,2]
[360170819,1746589847530,-450.0,0.00019647,2]
[360170820,1746589847540,-450.0,0.00019647,2]
[360170821,1746589847549,-450.0,0.00019647,2]
[360170822,1746589847559,-1021.81,0.00019647,2]
[360170823,1746589847569,-450.0,0.00019647,2]
[360170824,1746589847579,-450.0,0.00019647,2]
[360170825,1746589847588,-455.66,0.00019647,2]
[360170826,1746589847598,-450.0,0.00019647,2]
[360170827,1746589847608,-234.61795919,0.00019647,2]
[360170828,1746589847617,-450.0,0.00019647,2]
[360170829,1746589847627,-450.0,0.00019647,2]
[360170830,1746589847636,-450.0,0.00019647,2]
[360170831,1746589847646,-450.0,0.00019647,2]
[360170832,1746589847656,-1566.86,0.00019647,2]
[360170833,1746589847667,-480.86,0.00019647,2]
[360170834,1746589847676,-499.91,0.00019647,2]
[360170835,1746589847686,-450.0,0.00019647,2]
[360170836,1746589847696,-450.0,0.00019647,2]
[360170837,1746589847707,-450.0,0.00019647,2]
[360170838,1746589847721,-450.0,0.00019647,2]
[360170839,1746589847731,-450.0,0.00019647,2]
[360170840,1746589847741,-1199.07,0.00019647,2]
[360170841,1746589847751,-450.0,0.00019647,2]
[360170842,1746589847761,-450.0,0.00019647,2]
[360170843,1746589847772,-478.13868149,0.00019647,2]
[360170844,1746589847782,-1955.98,0.00019647,2]
[360170845,1746589847792,-471.5,0.00019647,2]
[360170846,1746589847802,-450.0,0.00019647,2]
[360170847,1746589847812,-450.0,0.00019647,2]
[360170848,1746589847822,-500.0,0.00019647,2]
[360170849,1746589847832,-450.0,0.00019647,2]
[360170850,1746589847842,-450.0,0.00019647,2]
[360170851,1746589847852,-484.73,0.00019647,2]
[360170852,1746589847862,-450.0,0.00019647,2]
[360170853,1746589847872,-155.226145,0.00019648,2]
[360170854,1746589847883,-151.0,0.00019648,2]
[360170855,1746589847894,-151.0,0.00019648,2]
[360170856,1746589847904,-151.0,0.00019648,2]
[360170857,1746589847914,-151.0,0.00019648,2]
[360170858,1746589847924,-151.0,0.00019648,2]
[360170859,1746589847934,-151.0,0.00019648,2]
[360170860,1746589847944,-2051.7307333,0.00019648,2]
[360170861,1746589847954,-1960.0663625,0.00019648,2]
[360170862,1746589847964,-419.68386607,0.00019648,2]
[360170863,1746589847974,-46889.5595,0.00019648,2]
[360170864,1746589847984,-14172.6605795,0.00019648,2]
[360170865,1746589847994,-16178.0571395,0.00019648,2]
[360170866,1746589848004,-14791.1181288,0.00019648,2]
[360170867,1746589848015,-1703.2312351,0.00019648,2]
[360170868,1746589848026,-784.9269828,0.00019648,2]
[360170869,1746589848036,-15145.72630537,0.0001965,2]
[360170870,1746589848048,-180.64510224,0.00019653,2]
[360170878,1746589848060,-151.0,0.00019654,2]
[360170879,1746589848282,-151.598417,0.00019654,2]
[360170881,1746589848292,-151.0,0.00019654,2]
[360170882,1746589848302,-151.0,0.00019654,2]
[360170884,1746589848312,-151.0,0.00019654,2]
[360170885,1746589848322,-2105.919,0.00019654,2]
[360170887,1746589848331,-181.298,0.00019654,2]
[360170888,1746589848341,-1553.636936,0.00019655,2]
[360170890,1746589848351,-193.16,0.00019655,2]
[360170891,1746589848361,-1010.13,0.00019656,2]
[360170892,1746589848371,-1806.27,0.00019656,2]
[360170893,1746589848380,-450.0,0.00019656,2]
[360170895,1746589848390,-890.24,0.00019656,2]
[360170896,1746589848400,-543.59,0.00019656,2]
[360170897,1746589848409,-450.0,0.00019656,2]
[360170898,1746589848419,-450.0,0.00019656,2]
[360170900,1746589848429,-450.0,0.00019656,2]
[360170901,1746589848438,-450.0,0.00019656,2]
[360170902,1746589848448,-450.0,0.00019656,2]
[360170904,1746589848458,-450.0,0.00019656,2]
[360170905,1746589848468,-501.73,0.00019656,2]
[360170906,1746589848478,-450.0,0.00019656,2]
[360170907,1746589848488,-1000.27,0.00019656,2]
[360170908,1746589848498,-450.0,0.00019656,2]
[360170909,1746589848508,-964.63,0.00019656,2]
[360170910,1746589848518,-930.37,0.00019656,2]
[360170911,1746589848527,-985.47,0.00019656,2]
[360170912,1746589848538,-450.0,0.00019656,2]
[360170913,1746589848548,-450.0,0.00019656,2]
[360170914,1746589848558,-455.66,0.00019656,2]
[360170915,1746589848568,-450.0,0.00019656,2]
[360170916,1746589848577,-450.0,0.00019656,2]
[360170917,1746589848586,-480.86,0.00019656,2]
[360170918,1746589848596,-504.47,0.00019656,2]
[360170919,1746589848605,-450.0,0.00019656,2]
[360170920,1746589848615,-1166.65,0.00019656,2]
[360170921,1746589848624,-450.0,0.00019656,2]
[360170922,1746589848634,-1955.98,0.00019656,2]
[360170923,1746589848644,-450.0,0.00019656,2]
[360170924,1746589848653,-450.0,0.00019656,2]
[360170925,1746589848663,-450.0,0.00019656,2]
[360170926,1746589848673,-450.0,0.00019656,2]
[360170927,1746589848683,-450.0,0.00019656,2]
[360170928,1746589848693,-1862.15,0.00019657,2]
[360170929,1746589848703,-450.0,0.00019657,2]
[360170930,1746589848716,-450.0,0.00019657,2]
[360170931,1746589848726,-450.0,0.00019657,2]
[360170932,1746589848736,-450.0,0.00019657,2]
[360170933,1746589848746,-450.0,0.00019657,2]